bitfinex/quotes_SOLUSD_20251124
["timestamp","ask_amount","ask_price","bid_price","bid_amount"]
[1764000195644,12.33361294,132.91,132.9,9.78882769]
[1764000195863,12.33361294,132.91,132.86,0.08]
[1764000195864,12.33361294,132.91,132.86,3.4]
[1764000196044,12.33361294,132.87,132.86,29.49769169]
[1764000196242,12.33361294,132.87,132.86,3.4]
[1764000196857,12.33361294,132.87,132.86,19.708864]
[1764000197156,12.99361294,132.87,132.78,0.08]
[1764000197363,12.33361294,132.82,132.78,26.46061409]
[1764000197545,12.33361294,132.84,132.8,38.43130463]
[1764000197864,12.33361294,132.86,132.84,9.78882769]
[1764000198062,12.33361294,132.85,132.83,16.308864]
[1764000198244,12.33361294,132.84,132.78,25.75278629]
[1764000198436,12.33361294,132.84,132.79,9.78882769]
[1764000198635,12.33361294,132.84,132.78,3.4]
[1764000198636,12.33361294,132.8,132.78,3.4]
[1764000198837,0.66,132.83,132.73,100.75340917]
[1764000199042,12.33361294,132.75,132.73,22.88741836]
[1764000199247,12.33361294,132.74,132.73,3.4]
[1764000199464,12.33361294,132.74,132.7,3.4]
[1764000199666,12.33361294,132.74,132.73,16.308864]
[1764000200236,12.33361294,132.74,132.7,3.4]
[1764000200441,12.33361294,132.74,132.71,9.78882769]
[1764000200644,3.4,132.82,132.7,3.48]
[1764000200645,12.33361294,132.72,132.7,3.4]
[1764000200849,12.33361294,132.71,132.7,3.4]
[1764000201050,0.66,132.81,132.71,16.308864]
[1764000201265,12.33361294,132.77,132.74,9.78882769]
[1764000201641,12.33361294,132.76,132.74,9.78882769]
[1764000201963,0.66,132.79,132.74,17.32229935]
[1764000201964,12.33361294,132.77,132.74,17.32229935]
[1764000202153,12.33361294,132.78,132.74,9.78882769]
[1764000202352,12.99361294,132.78,132.74,9.78882769]
[1764000202547,0.68,132.81,132.76,9.78882769]
[1764000202855,12.33361294,132.8,132.77,9.78882769]
[1764000203070,0.68,132.81,132.77,22.12244063]
[1764000203366,16.308864,132.87,132.77,22.12244063]
[1764000203367,0.68,132.83,132.8,16.308864]
[1764000203554,13.01361294,132.85,132.81,9.78882769]
[1764000204466,12.33361294,132.93,132.81,29.65184838]
[1764000204663,13.01361294,132.87,132.83,9.78882769]
[1764000204973,0.68,132.87,132.83,16.308864]
[1764000205142,12.33361294,132.84,132.8,3.4]
[1764000205341,12.33361294,132.84,132.81,9.78882769]
[1764000205569,12.33361294,132.85,132.81,9.78882769]
[1764000205768,0.68,132.86,132.81,16.308864]
[1764000205769,12.33361294,132.84,132.81,16.308864]
[1764000206068,12.33361294,132.82,132.73,0.08]
[1764000206271,12.33361294,132.78,132.73,15.73361294]
[1764000206567,12.33361294,132.77,132.76,16.308864]
[1764000206752,12.33361294,132.81,132.77,9.78882769]
[1764000206957,12.33361294,132.82,132.77,9.86882769]
[1764000207267,12.33361294,132.79,132.74,12.33361294]
[1764000207467,12.33361294,132.77,132.75,19.708864]
[1764000207650,0.68,132.83,132.75,3.4]
[1764000207966,12.33361294,132.76,132.72,10.93449237]
[1764000208168,12.33361294,132.79,132.73,0.08]
[1764000208351,0.68,132.8,132.75,22.12244063]
[1764000208543,12.33361294,132.8,132.76,28.64247694]
[1764000208744,0.68,132.83,132.77,22.12244063]
[1764000208942,12.33361294,132.81,132.77,9.78882769]
[1764000209368,12.33361294,132.81,132.76,16.308864]
[1764000209369,0.68,132.8,132.76,16.308864]
[1764000209547,12.33361294,132.79,132.76,16.308864]
[1764000209745,12.33361294,132.78,132.76,16.308864]
[1764000209959,12.33361294,132.79,132.76,16.308864]
[1764000210362,0.68,132.81,132.76,16.308864]
[1764000210766,13.01361294,132.81,132.77,22.12244063]
[1764000210964,12.33361294,132.81,132.77,22.12244063]
[1764000211271,13.01361294,132.8,132.76,9.78882769]
[1764000211459,12.33361294,132.8,132.76,9.78882769]
[1764000211658,12.33361294,132.79,132.76,9.78882769]
[1764000211854,12.33361294,132.79,132.76,20.7210924]
[1764000212063,12.33361294,132.8,132.76,20.7210924]
[1764000212276,12.33361294,132.81,132.76,20.8010924]
[1764000212464,12.33361294,132.81,132.79,16.308864]
[1764000213572,0.68,132.83,132.79,16.308864]
[1764000213573,12.33361294,132.82,132.79,16.308864]
[1764000213778,16.308864,132.9,132.8,26.09769169]
[1764000213779,12.33361294,132.84,132.8,26.09769169]
[1764000215063,12.33361294,132.82,132.79,3.4]
[1764000215382,12.33361294,132.82,132.8,16.308864]
[1764000215677,13.01361294,132.81,132.72,12.33361294]
[1764000215874,12.33361294,132.75,132.73,3.4]
[1764000216076,12.33361294,132.74,132.7,7.53572768]
[1764000216276,12.33361294,132.74,132.71,3.4]
[1764000216481,15.73361294,132.84,132.71,3.4]
[1764000216482,12.33361294,132.72,132.71,3.4]
[1764000217158,12.33361294,132.75,132.72,9.78882769]
[1764000217351,12.33361294,132.77,132.72,22.12244063]
[1764000217549,12.33361294,132.78,132.74,22.12244063]
[1764000217780,12.33361294,132.77,132.74,13.18882769]
[1764000217970,12.33361294,132.75,132.74,7.55882769]
[1764000218181,11.78882768,132.77,132.64,0.7]
[1764000218352,16.308864,132.7,132.64,0.7]
[1764000218552,12.33361294,132.69,132.64,13.03361294]
[1764000218865,16.898864,132.74,132.65,13.03361294]
[1764000219055,16.308864,132.75,132.65,8.23844099]
[1764000219250,12.33361294,132.71,132.66,16.47361294]
[1764000219451,29.23247694,132.75,132.67,0.7]
[1764000219665,29.23247694,132.75,132.63,50.75397722]
[1764000219666,12.33361294,132.68,132.63,0.7]
[1764000219962,16.308864,132.72,132.64,12.33361294]
[1764000220188,0.59,132.74,132.66,12.33361294]
[1764000220363,12.33361294,132.71,132.66,22.12244063]
[1764000220568,12.33361294,132.7,132.67,0.7]
[1764000221074,12.33361294,132.68,132.63,0.7]
[1764000221278,12.33361294,132.66,132.63,0.7]
[1764000221484,12.33361294,132.65,132.63,0.7]
[1764000221666,12.33361294,132.64,132.63,0.7]
[1764000221865,12.33361294,132.65,132.63,0.7]
[1764000222065,12.33361294,132.64,132.61,3.44]
[1764000222267,12.33361294,132.63,132.61,3.44]
[1764000222472,12.33361294,132.62,132.6,0.2]
[1764000222688,12.33361294,132.61,132.6,0.2]
[1764000224161,16.308864,132.63,132.6,0.2]
[1764000224360,1.99999999,132.72,132.6,0.2]
[1764000224585,12.33361294,132.62,132.6,0.2]
[1764000224790,12.33361294,132.63,132.6,0.9]
[1764000224957,12.33361294,132.62,132.6,0.9]
[1764000225156,12.33361294,132.63,132.6,0.9]
[1764000225391,12.33361294,132.64,132.61,0.7]
[1764000225567,12.33361294,132.65,132.61,0.7]
[1764000225766,12.33361294,132.65,132.62,9.78882769]
[1764000226080,0.59,132.67,132.6,9.98882769]
[1764000226276,12.33361294,132.62,132.6,9.98882769]
[1764000226464,0.59,132.67,132.6,17.53011862]
[1764000226668,12.33361294,132.67,132.62,9.78882769]
[1764000226885,12.33361294,132.69,132.64,22.12244063]
[1764000227175,12.33361294,132.7,132.65,0.7]
[1764000227368,12.33361294,132.7,132.65,8.23831734]
[1764000227563,12.33361294,132.71,132.66,22.12244063]
[1764000227766,0.59,132.75,132.66,22.79244063]
[1764000227969,12.33361294,132.74,132.7,9.78882769]
[1764000228188,12.33361294,132.84,132.71,0.67]
[1764000228189,12.33361294,132.75,132.71,0.67]
[1764000228562,12.33361294,132.75,132.72,9.78882769]
[1764000228788,12.33361294,132.77,132.72,9.78882769]
[1764000228988,12.33361294,132.77,132.74,9.78882769]
[1764000229166,12.33361294,132.78,132.74,9.78882769]
[1764000229367,12.33361294,132.76,132.73,0.67]
[1764000229987,12.33361294,132.76,132.73,8.20405745]
[1764000230303,12.33361294,132.76,132.73,0.67]
[1764000230970,12.33361294,132.76,132.74,9.78882769]
[1764000231173,12.33361294,132.77,132.74,9.78882769]
[1764000231376,16.308864,132.81,132.72,0.67]
[1764000231594,12.33361294,132.76,132.72,0.67]
[1764000231912,12.33361294,132.75,132.72,0.67]
[1764000232510,12.33361294,132.74,132.72,0.67]
[1764000232720,12.33361294,132.76,132.73,9.78882769]
[1764000233008,12.33361294,132.77,132.73,10.48882769]
[1764000233512,12.33361294,132.77,132.74,0.14216157]
[1764000233699,12.33361294,132.76,132.74,0.14216157]
[1764000233900,12.33361294,132.75,132.71,16.308864]
[1764000234407,12.33361294,132.74,132.7,9.78882769]
[1764000234704,12.33361294,132.74,132.71,0.14216157]
[1764000235206,12.33361294,132.74,132.69,4.16]
[1764000235411,12.33361294,132.74,132.7,10.48882769]
[1764000235777,0.59,132.77,132.7,17.32445228]
[1764000235985,12.33361294,132.76,132.71,0.7]
[1764000236205,0.59,132.79,132.71,0.7]
[1764000236399,12.33361294,132.75,132.72,0.14216157]
[1764000236720,12.33361294,132.76,132.72,0.14216157]
[1764000237018,12.33361294,132.77,132.74,0.14216157]
[1764000237310,0.59,132.79,132.74,0.14216157]
[1764000237311,12.33361294,132.78,132.74,0.14216157]
[1764000237485,12.33361294,132.78,132.74,0.84216157]
[1764000238292,12.33361294,132.78,132.74,8.37566446]
[1764000238509,12.33361294,132.8,132.74,20.7092774]
[1764000238718,12.33361294,132.8,132.76,0.14216157]
[1764000239015,12.33361294,132.79,132.76,0.14216157]
[1764000239317,16.308864,132.74,132.64,0.7]
[1764000239519,9.78882769,132.74,132.64,0.7]
[1764000239726,16.308864,132.7,132.64,0.7]
[1764000239932,3.46,132.72,132.64,0.7]
[1764000240095,12.33361294,132.75,132.65,16.308864]
[1764000240297,16.45102557,132.8,132.65,16.308864]
[1764000240298,16.308864,132.8,132.68,12.33361294]
[1764000240493,16.308864,132.77,132.68,12.33361294]
[1764000240694,16.308864,132.77,132.68,0.7]
[1764000240893,12.33361294,132.73,132.67,12.33361294]
[1764000241088,12.33361294,132.71,132.7,0.14216157]
[1764000241507,12.33361294,132.71,132.67,9.78882769]
[1764000241508,12.33361294,132.71,132.67,10.48882769]
[1764000241721,12.33361294,132.75,132.69,0.14216157]
[1764000242019,12.33361294,132.7,132.69,0.14216157]
[1764000242227,12.33361294,132.7,132.65,0.7]
[1764000242530,15.79361294,132.75,132.65,0.14216157]
[1764000242734,12.33361294,132.68,132.65,0.7]
[1764000242892,12.33361294,132.67,132.65,0.7]
[1764000243291,12.33361294,132.67,132.63,3.46]
[1764000243292,12.33361294,132.66,132.63,3.46]
[1764000243489,12.33361294,132.64,132.61,9.78882769]
[1764000243689,12.33361294,132.63,132.61,0.7]
[1764000244227,12.33361294,132.62,132.6,0.2]
[1764000244431,16.308864,132.69,132.61,0.7]
[1764000244728,16.308864,132.71,132.63,0.14216157]
[1764000244898,12.33361294,132.68,132.62,22.2646022]
[1764000245093,12.33361294,132.67,132.64,9.93098926]
[1764000245510,12.33361294,132.67,132.66,0.14216157]
[1764000246222,12.33361294,132.68,132.66,0.14216157]
[1764000246429,12.33361294,132.75,132.66,0.84216157]
[1764000246590,49.33445176,132.84,132.68,0.14216157]
[1764000246591,3.44,132.79,132.68,0.14216157]
[1764000246795,12.33361294,132.74,132.68,12.47577451]
[1764000246999,3.46,132.82,132.7,22.2646022]
[1764000247323,12.33361294,132.75,132.7,9.93098926]
[1764000247623,12.33361294,132.75,132.72,9.93098926]
[1764000248025,16.308864,132.81,132.72,9.93098926]
[1764000248026,12.33361294,132.73,132.72,0.14216157]
[1764000248325,12.33361294,132.73,132.7,0.14216157]
[1764000248508,12.33361294,132.74,132.7,0.84216157]
[1764000248829,12.33361294,132.75,132.7,0.84216157]
[1764000249129,3.44,132.81,132.72,12.47577451]
[1764000249305,0.1,132.88,132.77,22.2646022]
[1764000249507,12.33361294,132.84,132.8,0.14216157]
[1764000249710,12.33361294,132.84,132.8,9.93098926]
[1764000249909,12.33361294,132.87,132.82,22.2646022]
[1764000250104,0.1,132.88,132.84,12.47577451]
[1764000250302,0.1,132.88,132.87,22.12244063]
[1764000250523,0.1,132.98,132.88,9.78882769]
[1764000250715,0.1,132.98,132.89,13.17577451]
[1764000250908,0.1,132.98,132.9,9.78882769]
[1764000251231,0.1,132.95,132.92,9.78882769]
[1764000251404,0.1,132.95,132.92,22.12244063]
[1764000251601,0.1,132.95,132.91,0.14216157]
[1764000251943,12.33361294,132.94,132.93,0.14216157]
[1764000252118,12.43361294,132.95,132.93,0.14216157]
[1764000253126,12.43361294,132.95,132.89,12.33361294]
[1764000253127,12.33361294,132.94,132.91,0.14216157]
[1764000253298,12.33361294,132.94,132.89,10.48882769]
[1764000253299,12.33361294,132.92,132.89,0.14216157]
[1764000253500,0.1,132.95,132.89,0.84216157]
[1764000253727,12.33361294,132.93,132.89,0.84216157]
[1764000253901,12.33361294,132.92,132.89,0.84216157]
[1764000254112,12.33361294,132.92,132.87,0.7]
[1764000254313,12.33361294,132.91,132.89,0.14216157]
[1764000255328,0.1,132.95,132.91,0.14216157]
[1764000255518,0.1,132.95,132.91,12.47577451]
[1764000255837,12.33361294,132.94,132.91,0.14216157]
[1764000256040,12.33361294,132.93,132.91,0.14216157]
[1764000256219,12.33361294,132.92,132.91,0.14216157]
[1764000256539,12.33361294,132.92,132.88,0.14216157]
[1764000256835,7.8697965,132.89,132.86,0.7]
[1764000257043,19.848864,132.95,132.84,0.7]
[1764000257044,7.8697965,132.87,132.84,0.7]
[1764000257344,16.408864,132.91,132.82,3.44]
[1764000257511,0.1,132.93,132.85,0.14216157]
[1764000257721,16.308864,132.93,132.86,8.5697965]
[1764000257913,7.8697965,132.92,132.86,8.5697965]
[1764000258226,7.8697965,132.91,132.88,0.14216157]
[1764000258634,7.8697965,132.91,132.88,0.84216157]
[1764000258818,7.8697965,132.92,132.88,0.84216157]
[1764000259223,0.1,132.95,132.91,7.8697965]
[1764000259615,0.1,132.95,132.93,0.14216157]
[1764000260025,0.1,132.95,132.93,0.84216157]
[1764000260219,0.1,132.95,132.93,0.14216157]
[1764000260442,16.308864,132.91,132.83,0.7]
[1764000261630,7.8697965,132.88,132.83,8.5697965]
[1764000262140,7.8697965,132.88,132.84,0.7]
[1764000262451,7.8697965,132.85,132.81,0.7]
[1764000262625,7.8697965,132.84,132.81,0.7]
[1764000262831,7.8697965,132.84,132.79,8.5597965]
[1764000263137,7.8697965,132.86,132.81,7.8697965]
[1764000263336,7.8697965,132.86,132.82,0.14216157]
[1764000263543,7.8697965,132.83,132.8,0.69]
[1764000263947,7.8697965,132.81,132.73,0.69]
[1764000264250,7.8697965,132.76,132.73,0.69]
[1764000264446,3.48,132.83,132.73,0.69]
[1764000264447,16.308864,132.82,132.73,0.69]
[1764000264614,7.8697965,132.74,132.7,0.69]
[1764000264815,7.8697965,132.73,132.7,0.69]
[1764000265025,16.308864,132.77,132.7,8.5597965]
[1764000265260,16.308864,132.77,132.7,0.69]
[1764000265446,7.8697965,132.75,132.7,0.69]
[1764000265746,7.8697965,132.79,132.74,7.8697965]
[1764000265922,7.8697965,132.79,132.75,0.14216157]
[1764000266129,7.8697965,132.79,132.75,0.83216157]
[1764000267244,9.78882769,132.87,132.77,0.14216157]
[1764000267462,7.8697965,132.81,132.77,8.01195807]
[1764000267783,7.8697965,132.81,132.77,0.83216157]
[1764000268045,16.308864,132.84,132.77,0.14216157]
[1764000268223,16.308864,132.84,132.75,8.01195807]
[1764000268224,7.8697965,132.8,132.75,8.01195807]
[1764000268432,7.8697965,132.8,132.75,8.70195807]
[1764000268650,16.308864,132.85,132.78,8.01195807]
[1764000268857,7.8697965,132.83,132.78,8.01195807]
[1764000269308,7.8697965,132.79,132.73,0.69]
[1764000269452,7.8697965,132.77,132.73,0.69]
[1764000269781,7.8697965,132.78,132.73,0.69]
[1764000269979,7.8697965,132.77,132.73,0.69]
[1764000270163,16.308864,132.83,132.74,0.14216157]
[1764000270355,7.8697965,132.8,132.76,0.14216157]
[1764000270673,16.308864,132.84,132.76,8.70195807]
[1764000270971,7.8697965,132.81,132.76,8.70195807]
[1764000271575,7.8697965,132.81,132.78,0.14216157]
[1764000272074,16.308864,132.84,132.78,0.14216157]
[1764000272075,1.99999999,132.91,132.79,0.69]
[1764000272275,7.8697965,132.88,132.8,0.14216157]
[1764000272476,7.8697965,132.84,132.8,0.14216157]
[1764000272686,7.8697965,132.83,132.8,0.14216157]
[1764000272901,24.1786605,132.88,132.8,0.14216157]
[1764000273053,7.8697965,132.83,132.8,0.14216157]
[1764000273980,24.1786605,132.88,132.8,0.83216157]
[1764000274181,7.8697965,132.85,132.8,8.70195807]
[1764000274382,7.8697965,132.85,132.82,0.14216157]
[1764000274852,7.8697965,132.85,132.82,0.83216157]
[1764000275304,1.99999999,132.94,132.82,0.83216157]
[1764000275464,7.8697965,132.88,132.83,7.8697965]
[1764000275870,7.8697965,132.88,132.85,0.14216157]
[1764000276053,7.8697965,132.89,132.85,0.14216157]
[1764000276250,16.308864,132.93,132.85,7.66929735]
[1764000276450,2.09587209,132.97,132.89,0.14216157]
[1764000276657,7.8697965,132.93,132.88,8.01195807]
[1764000276860,7.8697965,132.93,132.88,8.70195807]
[1764000277170,7.8697965,132.93,132.89,0.69]
[1764000277663,16.308864,132.96,132.89,0.69]
[1764000277865,16.308864,132.96,132.9,0.14216157]
[1764000278060,7.8697965,132.91,132.86,0.69]
[1764000278261,7.8697965,132.91,132.87,0.14216157]
[1764000278484,7.8697965,132.92,132.87,8.01195807]
[1764000278678,7.8697965,132.92,132.87,8.70195807]
[1764000278883,7.8697965,132.92,132.89,0.14216157]
[1764000279270,24.1786605,132.96,132.89,0.14216157]
[1764000279588,7.8697965,132.92,132.89,0.83216157]
[1764000280566,7.8697965,132.9,132.84,0.69]
[1764000280772,33.96748819,132.96,132.82,0.69]
[1764000280773,16.408864,132.95,132.82,0.69]
[1764000280998,7.8697965,132.86,132.82,0.69]
[1764000281207,7.8697965,132.88,132.83,7.8697965]
[1764000281565,3.46,132.92,132.84,0.69]
[1764000281892,7.8697965,132.87,132.84,0.69]
[1764000282065,3.46,132.92,132.84,0.69]
[1764000282387,7.8697965,132.87,132.84,0.69]
[1764000282586,7.8697965,132.87,132.85,0.14216157]
[1764000282888,7.8697965,132.87,132.84,0.69]
[1764000283064,7.8697965,132.86,132.84,0.69]
[1764000283260,7.8697965,132.87,132.84,0.69]
[1764000283971,7.8697965,132.86,132.83,0.14216157]
[1764000284378,7.8697965,132.85,132.83,0.14216157]
[1764000284783,3.46,132.92,132.84,0.14216157]
[1764000284985,7.8697965,132.85,132.84,0.14216157]
[1764000285191,7.8697965,132.85,132.79,0.69]
[1764000285498,16.308864,132.89,132.81,0.14216157]
[1764000285678,7.8697965,132.86,132.81,8.01195807]
[1764000285878,7.8697965,132.88,132.84,0.14216157]
[1764000286083,7.8697965,132.87,132.83,0.83216157]
[1764000286273,7.8697965,132.88,132.83,0.83216157]
[1764000286673,7.8697965,132.87,132.83,0.83216157]
[1764000287376,16.308864,132.91,132.83,8.70195807]
[1764000287572,7.8697965,132.9,132.86,0.14216157]
[1764000287970,7.8697965,132.87,132.83,0.14216157]
[1764000288169,16.308864,132.93,132.83,0.83216157]
[1764000288419,0.1,132.95,132.87,7.8697965]
[1764000288587,7.8697965,132.92,132.88,0.14216157]
[1764000288970,0.1,132.95,132.83,7.52826397]
[1764000289176,7.8697965,132.89,132.86,0.14216157]
[1764000289609,7.8697965,132.9,132.86,0.83216157]
[1764000289770,7.8697965,132.89,132.86,0.83216157]
[1764000289976,7.8697965,132.88,132.85,0.14216157]
[1764000290196,0.1,132.95,132.85,0.14216157]
[1764000290197,26.19769169,132.95,132.85,0.14216157]
[1764000290395,7.8697965,132.89,132.85,0.14216157]
[1764000290780,16.308864,132.92,132.84,0.69]
[1764000291107,7.8697965,132.85,132.81,0.69]
[1764000291705,7.8697965,132.84,132.81,0.69]
[1764000292004,7.8697965,132.85,132.81,0.69]
[1764000292181,3.46,132.9,132.81,0.69]
[1764000292387,7.8697965,132.86,132.82,0.14216157]
[1764000292583,3.46,132.9,132.82,0.14216157]
[1764000292584,7.8697965,132.85,132.82,0.14216157]
[1764000293103,7.8697965,132.84,132.81,0.69]
[1764000293291,7.8697965,132.82,132.78,0.66]
[1764000293492,7.8697965,132.81,132.78,0.66]
[1764000293903,7.8697965,132.82,132.78,0.66]
[1764000294601,7.8697965,132.85,132.81,0.14216157]
[1764000295086,7.8697965,132.85,132.81,0.80216157]
[1764000295285,7.8697965,132.84,132.81,0.80216157]
[1764000296192,24.1786605,132.88,132.76,16.308864]
[1764000296392,7.8697965,132.82,132.78,0.14216157]
[1764000296796,7.8697965,132.82,132.8,0.14216157]
[1764000297193,7.8697965,132.83,132.8,0.80216157]
[1764000297398,7.8697965,132.83,132.8,0.14216157]
[1764000297589,7.8697965,132.82,132.8,0.14216157]
[1764000297789,7.8697965,132.83,132.8,0.14216157]
[1764000297991,7.8697965,132.83,132.8,0.80216157]
[1764000298392,7.8697965,132.87,132.83,0.14216157]
[1764000298588,7.8697965,132.88,132.84,0.66]
[1764000299491,7.8697965,132.85,132.82,0.14216157]
[1764000299902,7.8697965,132.85,132.82,0.80216157]
[1764000300413,7.8697965,132.84,132.8,0.66]
[1764000300597,7.8697965,132.84,132.81,0.80216157]
[1764000300802,7.8697965,132.83,132.79,0.66]
[1764000300999,24.1786605,132.88,132.8,8.5297965]
[1764000301186,0.1,132.95,132.8,8.5297965]
[1764000301187,0.1,132.95,132.85,7.8697965]
[1764000301391,7.8697965,132.91,132.86,0.66]
[1764000301608,7.8697965,132.87,132.82,8.5297965]
[1764000301799,7.8697965,132.84,132.82,0.66]
[1764000302122,7.8697965,132.84,132.82,16.308864]
[1764000302409,7.8697965,132.85,132.82,16.968864]
[1764000302611,7.8697965,132.84,132.82,16.308864]
[1764000303017,7.8697965,132.83,132.8,0.66]
[1764000303215,7.8697965,132.83,132.8,16.968864]
[1764000303520,7.8697965,132.88,132.79,0.14216157]
[1764000303521,7.8697965,132.82,132.79,0.14216157]
[1764000303820,7.8697965,132.81,132.78,16.968864]
[1764000304122,7.8697965,132.87,132.8,24.1786605]
[1764000304320,7.8697965,132.85,132.81,0.14216157]
[1764000304499,7.8697965,132.83,132.78,7.8697965]
[1764000304703,7.8697965,132.79,132.75,0.66]
[1764000304898,7.8697965,132.78,132.75,0.66]
[1764000305099,7.8697965,132.77,132.69,50.0]
[1764000305290,7.8697965,132.74,132.7,0.66]
[1764000305489,7.8697965,132.8,132.68,0.66]
[1764000305490,7.8697965,132.72,132.68,0.66]
[1764000305727,7.8697965,132.8,132.68,24.8386605]
[1764000305927,7.8697965,132.78,132.73,7.8697965]
[1764000306144,7.8697965,132.75,132.71,16.308864]
[1764000306433,7.8697965,132.72,132.69,0.66]
[1764000306626,7.8697965,132.73,132.69,8.5297965]
[1764000306831,7.8697965,132.73,132.7,0.14216157]
[1764000307038,7.8697965,132.73,132.7,0.66]
[1764000307340,7.8697965,132.77,132.72,7.8697965]
[1764000307651,7.8697965,132.76,132.71,8.01195807]
[1764000308004,7.8697965,132.75,132.71,0.80216157]
[1764000308208,7.8697965,132.73,132.71,0.66]
[1764000308413,7.8697965,132.74,132.71,0.66]
[1764000308922,16.308864,132.8,132.73,7.8697965]
[1764000309249,7.8697965,132.76,132.72,0.14216157]
[1764000309533,7.8697965,132.75,132.71,0.66]
[1764000310236,7.8697965,132.78,132.73,7.8697965]
[1764000310450,7.8697965,132.77,132.72,8.01195807]
[1764000310661,7.8697965,132.77,132.72,8.67195807]
[1764000310959,7.8697965,132.76,132.73,0.66]
[1764000311251,24.1786605,132.8,132.73,0.66]
[1764000311461,7.8697965,132.76,132.73,0.66]
[1764000311745,7.8697965,132.75,132.72,0.14216157]
[1764000311928,24.1786605,132.8,132.7,0.66]
[1764000311929,7.8697965,132.73,132.7,0.66]
[1764000312237,7.8697965,132.71,132.67,0.86]
[1764000312420,3.44,132.77,132.67,0.86]
[1764000312621,7.8697965,132.71,132.68,0.66]
[1764000312844,7.8697965,132.71,132.68,16.968864]
[1764000313026,7.8697965,132.71,132.68,0.66]
[1764000313338,3.44,132.77,132.69,8.5297965]
[1764000313540,1.99999999,132.88,132.75,7.8697965]
[1764000313711,7.8697965,132.81,132.76,7.8697965]
[1764000313909,7.8697965,132.8,132.76,7.8697965]
[1764000314222,7.8697965,132.8,132.75,8.5297965]
[1764000314637,7.8697965,132.8,132.76,0.66]
[1764000315439,7.8697965,132.81,132.76,8.5297965]
[1764000315611,7.8697965,132.83,132.78,7.8697965]
[1764000316011,7.8697965,132.83,132.79,0.66]
[1764000316228,3.44,132.87,132.75,17.32170236]
[1764000316229,7.8697965,132.8,132.76,0.66]
[1764000316648,7.8697965,132.82,132.77,8.01195807]
[1764000316817,7.8697965,132.83,132.78,7.8697965]
[1764000317016,7.8697965,132.84,132.79,7.8697965]
[1764000317219,7.8697965,132.84,132.78,0.66]
[1764000317220,7.8697965,132.83,132.78,0.66]
[1764000317420,7.8697965,132.81,132.77,0.14216157]
[1764000317752,7.8697965,132.83,132.78,7.8697965]
[1764000317927,7.8697965,132.83,132.79,0.66]
[1764000318535,12.34602228,132.83,132.79,0.66]
[1764000318736,19.748864,132.88,132.79,0.66]
[1764000318937,16.308864,132.8,132.72,50.0]
[1764000319122,12.34602228,132.78,132.73,13.00602228]
[1764000319318,12.34602228,132.77,132.73,0.66]
[1764000319522,12.34602228,132.77,132.72,28.65488628]
[1764000319732,12.34602228,132.77,132.74,0.66]
[1764000320024,12.34602228,132.75,132.72,0.66]
[1764000320230,16.308864,132.81,132.7,0.66]
[1764000320231,12.34602228,132.73,132.7,0.66]
[1764000320438,12.34602228,132.72,132.7,0.66]
[1764000320639,12.34602228,132.73,132.7,0.66]
[1764000320838,12.34602228,132.72,132.67,12.54602228]
[1764000321029,12.34602228,132.7,132.68,0.66]
[1764000321237,12.34602228,132.73,132.68,13.00602228]
[1764000321438,28.09769168,132.8,132.68,13.00602228]
[1764000321439,16.308864,132.77,132.68,0.66]
[1764000321740,12.34602228,132.73,132.69,0.66]
[1764000322122,12.34602228,132.71,132.69,0.66]
[1764000322644,12.34602228,132.72,132.69,0.66]
[1764000322845,12.34602228,132.7,132.67,0.2]
[1764000323037,12.34602228,132.68,132.67,0.2]
[1764000323228,12.34602228,132.69,132.67,0.2]
[1764000323748,12.34602228,132.71,132.68,0.66]
[1764000323921,12.34602228,132.7,132.68,0.66]
[1764000324321,16.308864,132.76,132.68,0.66]
[1764000324522,12.34602228,132.71,132.68,0.66]
[1764000324752,12.34602228,132.72,132.68,0.66]
[1764000325723,16.308864,132.76,132.68,0.66]
[1764000325724,12.34602228,132.71,132.68,0.66]
[1764000325926,12.34602228,132.7,132.68,0.66]
[1764000326156,16.308864,132.76,132.68,0.66]
[1764000326322,12.34602228,132.72,132.69,0.14216157]
[1764000326641,16.308864,132.76,132.7,0.66]
[1764000326858,12.34602228,132.72,132.7,0.66]
[1764000327350,16.308864,132.77,132.7,0.66]
[1764000327527,12.34602228,132.72,132.7,0.66]